bitfinex-derivatives/quotes_ETHF0:USTF0_20260123
["timestamp","ask_amount","ask_price","bid_price","bid_amount"]
[1769135370412,0.86310335,2962.7,2962.0,0.00505817]
[1769135370612,0.00245023,2962.8,2962.0,0.00505817]
[1769135370813,0.86312667,2962.7,2962.0,0.00505817]
[1769135371020,0.00245023,2962.8,2962.0,0.00505817]
[1769135371210,0.86318929,2962.7,2962.0,0.00505817]
[1769135371409,0.00245023,2962.8,2962.0,0.00505817]
[1769135371618,0.86317883,2962.7,2962.0,0.00505817]
[1769135371916,0.00245023,2962.8,2962.0,0.00505817]
[1769135372118,0.86317911,2962.7,2962.0,0.00505817]
[1769135372415,0.00245023,2962.8,2962.0,0.00505817]
[1769135372616,0.86324558,2962.7,2962.0,0.00505817]
[1769135372817,0.00245023,2962.8,2962.0,0.00505817]
[1769135373018,0.86324716,2962.7,2962.0,0.00505817]
[1769135373317,0.00245023,2962.8,2962.0,0.00505817]
[1769135373618,0.86323881,2962.7,2962.0,0.00505817]
[1769135373814,0.00245023,2962.8,2962.0,0.00505817]
[1769135374009,0.86323851,2962.7,2962.0,0.00505817]
[1769135374210,0.00245023,2962.8,2962.0,0.00505817]
[1769135374411,0.86324047,2962.7,2962.0,0.00505817]
[1769135374710,0.00245023,2962.8,2962.0,0.00505817]
[1769135375010,0.86325758,2962.7,2962.0,0.00505817]
[1769135375206,0.00245023,2962.8,2962.0,0.00505817]
[1769135375417,0.86326549,2962.7,2962.0,0.00505817]
[1769135375606,0.00245023,2962.8,2962.0,0.00505817]
[1769135375810,0.86326534,2962.7,2962.0,0.00505817]
[1769135376011,0.00245023,2962.8,2962.0,0.00505817]
[1769135376207,0.86326537,2962.7,2962.0,0.00505817]
[1769135376411,0.00245023,2962.8,2962.0,0.00505817]
[1769135377411,0.86341568,2962.7,2962.0,0.00505817]
[1769135377611,0.00245023,2962.8,2962.0,0.00505817]
[1769135377812,0.8634314,2962.7,2962.0,0.00505817]
[1769135378013,0.00245023,2962.8,2962.0,0.00505817]
[1769135378217,0.86346913,2962.7,2962.0,0.00505817]
[1769135378416,0.00245023,2962.8,2962.0,0.00505817]
[1769135378617,0.86358878,2962.7,2962.0,0.00505817]
[1769135378921,0.00245023,2962.8,2962.0,0.00505817]
[1769135379114,0.86360587,2962.7,2962.0,0.00505817]
[1769135379312,0.00245023,2962.8,2962.0,0.00505817]
[1769135379513,0.86377516,2962.7,2962.0,0.00505817]
[1769135379813,0.00245023,2962.8,2962.0,0.00505817]
[1769135380012,0.86377462,2962.7,2962.0,0.00505817]
[1769135380320,0.00245023,2962.8,2962.0,0.00505817]
[1769135380519,0.86394852,2962.7,2962.0,0.00505817]
[1769135380817,0.00245023,2962.8,2962.0,0.00505817]
[1769135381018,0.86395018,2962.7,2962.0,0.00505817]
[1769135381217,0.00245023,2962.8,2962.0,0.00505817]
[1769135381423,0.8641662,2962.7,2962.0,0.00505817]
[1769135381718,0.00245023,2962.8,2962.0,0.00505817]
[1769135381922,0.86416814,2962.7,2962.0,0.00505817]
[1769135382123,0.00245023,2962.8,2962.0,0.00505817]
[1769135382316,0.86416414,2962.7,2962.0,0.00505817]
[1769135382519,0.00245023,2962.8,2962.0,0.00505817]
[1769135382719,0.86443106,2962.7,2962.0,0.00505817]
[1769135382918,0.00245023,2962.8,2962.0,0.00505817]
[1769135383117,0.86442886,2962.7,2962.0,0.00505817]
[1769135383409,0.86442886,2962.6,2962.0,0.00505817]
[1769135383615,0.00245023,2962.8,2962.0,0.00505817]
[1769135383816,0.8645579,2962.7,2962.0,0.00505817]
[1769135384016,0.8645579,2962.6,2962.0,0.00505817]
[1769135384216,0.00245023,2962.8,2962.0,0.00505817]
[1769135384520,0.86509805,2962.7,2962.0,0.00505817]
[1769135384727,0.86509805,2962.6,2962.0,0.00505817]
[1769135385022,0.00245023,2962.8,2962.0,0.00505817]
[1769135385222,0.86509819,2962.7,2962.0,0.00505817]
[1769135385520,0.86509819,2962.6,2962.0,0.00505817]
[1769135385722,0.00245023,2962.8,2962.0,0.00505817]
[1769135385924,0.86531127,2962.7,2962.0,0.00505817]
[1769135386118,0.86531127,2962.6,2962.0,0.00505817]
[1769135386319,0.00245023,2962.8,2962.0,0.00505817]
[1769135386521,0.86565325,2962.7,2962.0,0.00505817]
[1769135386721,0.86565325,2962.6,2962.0,0.00505817]
[1769135386927,0.00245023,2962.8,2962.0,0.00505817]
[1769135387120,0.86569629,2962.7,2962.0,0.00505817]
[1769135387320,0.86569629,2962.6,2962.0,0.00505817]
[1769135387520,0.86569629,2962.5,2962.0,0.00505817]
[1769135387725,0.00245023,2962.8,2962.0,0.00505817]
[1769135387926,0.86600238,2962.7,2962.0,0.00505817]
[1769135388226,0.86600238,2962.6,2962.0,0.00505817]
[1769135388425,0.86600238,2962.5,2962.0,0.00505817]
[1769135388627,0.00245023,2962.8,2962.0,0.00505817]
[1769135388827,0.86600315,2962.7,2962.0,0.00505817]
[1769135389129,0.86600315,2962.6,2962.0,0.00505817]
[1769135389329,0.86600315,2962.5,2962.0,0.00505817]
[1769135389531,0.00245023,2962.8,2962.0,0.00505817]
[1769135389730,0.86600348,2962.7,2962.0,0.00505817]
[1769135389926,0.86600348,2962.6,2962.0,0.00505817]
[1769135390126,0.86600348,2962.5,2962.0,0.00505817]
[1769135390329,0.00245023,2962.8,2962.0,0.00505817]
[1769135390527,0.8660407,2962.7,2962.0,0.00505817]
[1769135390728,0.8660407,2962.6,2962.0,0.00505817]
[1769135390930,0.8660407,2962.5,2962.0,0.00505817]
[1769135391123,0.00245023,2962.8,2962.0,0.00505817]
[1769135391325,0.86606368,2962.7,2962.0,0.00505817]
[1769135391526,0.86606368,2962.6,2962.0,0.00505817]
[1769135391829,0.86606368,2962.5,2962.0,0.00505817]
[1769135392021,0.00245023,2962.8,2962.0,0.00505817]
[1769135392323,0.8661078,2962.7,2962.0,0.00505817]
[1769135392524,0.8661078,2962.6,2962.0,0.00505817]
[1769135392724,0.8661078,2962.5,2962.0,0.00505817]
[1769135392924,0.00245023,2962.8,2962.0,0.00505817]
[1769135393121,0.86610834,2962.7,2962.0,0.00505817]
[1769135393327,0.86610834,2962.6,2962.0,0.00505817]
[1769135393526,0.86610834,2962.5,2962.0,0.00505817]
[1769135393821,0.00245023,2962.8,2962.0,0.00505817]
[1769135394029,0.86610768,2962.7,2962.0,0.00505817]
[1769135394233,0.86610768,2962.6,2962.0,0.00505817]
[1769135394432,0.86610768,2962.5,2962.0,0.00505817]
[1769135394634,0.00245023,2962.8,2962.0,0.00505817]
[1769135394832,0.86610635,2962.7,2962.0,0.00505817]
[1769135395032,0.86610635,2962.6,2962.0,0.00505817]
[1769135395228,0.86610635,2962.5,2962.0,0.00505817]
[1769135395428,0.00245023,2962.8,2962.0,0.00505817]
[1769135395729,0.86622339,2962.7,2962.0,0.00505817]
[1769135396027,0.86622339,2962.6,2962.0,0.00505817]
[1769135396227,0.86622339,2962.5,2962.0,0.00505817]
[1769135396429,0.86622339,2962.4,2962.0,0.00505817]
[1769135396735,0.00245023,2962.8,2962.0,0.00505817]
[1769135396931,0.86622539,2962.7,2962.0,0.00505817]
[1769135397131,0.86622539,2962.6,2962.0,0.00505817]
[1769135397441,0.86622539,2962.5,2962.0,0.00505817]
[1769135397631,0.86622539,2962.4,2962.0,0.00505817]
[1769135397832,0.00245023,2962.8,2962.0,0.00505817]
[1769135398132,0.86624338,2962.7,2962.0,0.00505817]
[1769135398335,0.86624338,2962.6,2962.0,0.00505817]
[1769135398534,0.86624338,2962.5,2962.0,0.00505817]
[1769135398726,0.86624338,2962.4,2962.0,0.00505817]
[1769135398926,0.00245023,2962.8,2962.0,0.00505817]
[1769135399134,0.86620057,2962.7,2962.0,0.00505817]
[1769135399334,0.86620057,2962.6,2962.0,0.00505817]
[1769135399535,0.86620057,2962.5,2962.0,0.00505817]
[1769135399732,0.86620057,2962.4,2962.0,0.00505817]
[1769135400033,0.00245023,2962.8,2962.0,0.00505817]
[1769135400231,0.86620017,2962.7,2962.0,0.00505817]
[1769135400433,0.86620017,2962.6,2962.0,0.00505817]
[1769135400634,0.86620017,2962.5,2962.0,0.00505817]
[1769135400934,0.86620017,2962.4,2962.0,0.00505817]
[1769135401233,0.00245023,2962.8,2962.0,0.00505817]
[1769135401432,0.8661949,2962.7,2962.0,0.00505817]
[1769135401632,0.8661949,2962.6,2962.0,0.00505817]
[1769135401833,0.8661949,2962.5,2962.0,0.00505817]
[1769135402036,0.8661949,2962.4,2962.0,0.00505817]
[1769135402235,0.00245023,2962.8,2962.0,0.00505817]
[1769135402435,0.8661982,2962.7,2962.0,0.00505817]
[1769135402633,0.8661982,2962.6,2962.0,0.00505817]
[1769135402835,0.8661982,2962.5,2962.0,0.00505817]
[1769135403030,0.8661982,2962.4,2962.0,0.00505817]
[1769135403231,0.00245023,2962.8,2962.0,0.00505817]
[1769135403428,0.86619948,2962.7,2962.0,0.00505817]
[1769135403637,0.86619948,2962.6,2962.0,0.00505817]
[1769135403839,0.86619948,2962.5,2962.0,0.00505817]
[1769135404139,0.86619948,2962.4,2962.0,0.00505817]
[1769135404340,0.00245023,2962.8,2962.0,0.00505817]
[1769135404539,0.86619929,2962.7,2962.0,0.00505817]
[1769135404741,0.86619929,2962.6,2962.0,0.00505817]
[1769135404941,0.86619929,2962.5,2962.0,0.00505817]
[1769135405139,0.86619929,2962.4,2962.0,0.00505817]
[1769135405340,1.76906952,2962.8,2962.0,0.00505817]
[1769135405541,0.86619889,2962.7,2962.0,0.00505817]
[1769135405740,0.86619889,2962.6,2962.0,0.00505817]
[1769135406042,0.86619889,2962.5,2962.0,0.00505817]
[1769135406235,0.86619889,2962.4,2962.0,0.00505817]
[1769135406541,1.76906952,2962.8,2962.0,0.00505817]
[1769135406742,0.86619969,2962.7,2962.0,0.00505817]
[1769135406943,0.86619969,2962.6,2962.0,0.00505817]
[1769135407245,0.86619969,2962.5,2962.0,0.00505817]
[1769135407443,0.00245023,2962.8,2962.0,0.00505817]
[1769135415345,0.00245023,2962.8,2962.0,1.73560693]
[1769135416347,1.76661929,2963.6,2962.0,1.73560693]
[1769135417243,1.76904967,2963.6,2962.0,1.73560693]
[1769135419345,0.86132587,2963.5,2962.0,1.73560693]
[1769135419648,0.86132587,2963.4,2962.0,1.73560693]
[1769135419843,0.86132587,2963.3,2962.0,1.73560693]
[1769135420044,1.76904967,2963.6,2962.0,1.73560693]
[1769135420244,0.86158555,2963.5,2962.0,1.73560693]
[1769135420446,0.86158555,2963.4,2962.0,1.73560693]
[1769135420743,0.00243038,2963.6,2962.0,4.1523399]
[1769135420947,0.86143537,2963.5,2962.1,2.62348148]
[1769135421250,0.00243038,2963.6,2962.2,1.73054876]
[1769135421450,0.86131703,2963.5,2962.2,1.73054876]
[1769135421653,0.00243038,2963.6,2962.2,1.73054876]
[1769135421946,0.86131771,2963.5,2962.2,1.73054876]
[1769135422150,0.00243038,2963.6,2962.2,1.73054876]
[1769135422350,0.86110719,2963.5,2962.2,1.73054876]
[1769135422551,0.00243038,2963.6,2962.2,1.73054876]
[1769135422751,0.86109618,2963.5,2962.2,1.73054876]
[1769135423049,0.00243038,2963.6,2962.2,1.73054876]
[1769135424451,0.00243038,2963.6,2962.3,1.73054876]
[1769135426855,0.00243038,2963.6,2962.5,2.62294398]
[1769135428453,0.00243038,2963.6,2962.6,1.73054876]
[1769135428754,0.00243038,2963.6,2962.6,1.73331824]
[1769135429650,0.00243038,2963.6,2962.7,2.62294398]
[1769135430445,0.00243038,2963.6,2963.0,0.89239522]
[1769135430648,6.498,2964.3,2963.0,0.89239522]
[1769135430855,0.8606799,2964.2,2963.0,0.89239522]
[1769135431153,0.8606799,2964.1,2963.0,0.89239522]
[1769135431353,0.8606799,2964.0,2963.0,0.89239522]
[1769135431555,0.00370106,2964.0,2963.0,0.89239522]
[1769135432652,0.00370106,2964.0,2962.7,2.62294398]
[1769135438567,0.00370106,2964.0,2962.8,1.49733397]
[1769135440369,0.00370106,2964.0,2962.9,2.38972919]
[1769135444069,0.00370106,2964.0,2962.9,1.49733397]
[1769135444270,0.89239522,2963.9,2962.9,1.49733397]
[1769135444663,0.00370106,2964.0,2962.9,1.49733397]
[1769135446173,0.86355144,2963.9,2962.9,1.49733397]
[1769135446365,0.86355093,2963.8,2962.9,1.49733397]
[1769135446567,0.00370106,2964.0,2962.9,1.49733397]
[1769135446764,0.86355138,2963.9,2962.9,1.49733397]
[1769135446964,0.86355138,2963.8,2962.9,1.49733397]
[1769135447165,0.86368835,2963.7,2962.9,1.49733397]
[1769135447468,0.00370106,2964.0,2962.9,1.49733397]
[1769135447661,0.86368108,2963.9,2962.9,1.49733397]
[1769135447857,0.86368108,2963.8,2962.9,1.49733397]
[1769135448070,0.00370106,2964.0,2962.9,1.49733397]
[1769135448271,0.86386974,2963.9,2962.9,1.49733397]
[1769135448472,0.86386974,2963.8,2962.9,1.49733397]
[1769135448773,0.00370106,2964.0,2962.9,1.49733397]
[1769135449071,0.86386643,2963.9,2962.9,1.49733397]
[1769135449273,0.86386643,2963.8,2962.9,1.49733397]
[1769135449466,0.86386643,2963.7,2962.9,1.49733397]
[1769135449663,0.00505817,2963.7,2962.9,1.49733397]
[1769135452174,0.86464002,2963.6,2962.9,1.49733397]
[1769135452373,0.00505817,2963.7,2962.9,1.49733397]
[1769135452574,0.86464105,2963.6,2962.9,1.49733397]
[1769135452775,0.00505817,2963.7,2962.9,1.49733397]
[1769135453686,0.86466132,2963.6,2962.9,1.49733397]
[1769135453876,0.00505817,2963.7,2962.9,1.49733397]
[1769135454174,0.8646787,2963.6,2962.9,1.49733397]
[1769135454374,0.00505817,2963.7,2962.9,1.49733397]
[1769135454575,0.86472413,2963.6,2962.9,1.49733397]
[1769135454778,0.00505817,2963.7,2962.9,1.49733397]
[1769135454968,0.86474743,2963.6,2962.9,1.49733397]
[1769135455169,0.00505817,2963.7,2962.9,1.49733397]
[1769135455370,0.86480895,2963.6,2962.9,1.49733397]
[1769135455576,0.00505817,2963.7,2962.9,1.49733397]
[1769135455767,0.86480967,2963.6,2962.9,1.49733397]
[1769135455970,0.00505817,2963.7,2962.9,1.49733397]
[1769135456170,0.86482124,2963.6,2962.9,1.49733397]
[1769135456371,0.00505817,2963.7,2962.9,1.49733397]
[1769135458477,0.00370106,2964.0,2963.0,1.49733397]
[1769135458677,0.86508663,2963.9,2963.0,1.49733397]
[1769135458871,0.00370106,2964.0,2963.0,1.49733397]
[1769135459076,0.86508681,2963.9,2963.0,1.49733397]
[1769135459278,0.00370106,2964.0,2963.0,1.49733397]
[1769135459477,0.86514345,2963.9,2963.0,1.49733397]
[1769135459677,0.00370106,2964.0,2963.0,1.49733397]
[1769135459880,0.86515832,2963.9,2963.0,1.49733397]
[1769135460083,0.00370106,2964.0,2963.0,1.49733397]
[1769135460272,0.865229,2963.9,2963.0,1.49733397]
[1769135460478,0.00370106,2964.0,2963.0,1.49733397]
[1769135460778,0.86490004,2963.9,2963.0,1.49733397]
[1769135460979,0.00370106,2964.0,2963.0,1.49733397]
[1769135461180,0.86489025,2963.9,2963.0,1.49733397]
[1769135461475,0.00370106,2964.0,2963.0,1.49733397]
[1769135461681,0.86487679,2963.9,2963.0,1.49733397]
[1769135461883,0.00370106,2964.0,2963.0,1.49733397]
[1769135462085,0.86487803,2963.9,2963.0,1.49733397]
[1769135462276,0.00370106,2964.0,2963.0,1.49733397]
[1769135462486,0.86487018,2963.9,2963.0,1.49733397]
[1769135462681,0.86487018,2963.8,2963.0,1.49733397]
[1769135462882,0.00370106,2964.0,2963.0,1.49733397]
[1769135463082,0.86485099,2963.9,2963.0,1.49733397]
[1769135463289,0.86485099,2963.8,2963.0,1.49733397]
[1769135463587,0.00370106,2964.0,2963.0,1.49733397]
[1769135463791,0.86484535,2963.9,2963.0,1.49733397]
[1769135463992,0.00370106,2964.0,2963.0,1.49733397]
[1769135464184,0.86484567,2963.9,2963.0,1.49733397]
[1769135464384,0.00370106,2964.0,2963.0,1.49733397]
[1769135464687,0.86484255,2963.9,2963.0,1.49733397]
[1769135464884,0.00370106,2964.0,2963.0,1.49733397]
[1769135465187,0.86484453,2963.9,2963.0,1.49733397]
[1769135465488,0.00370106,2964.0,2963.0,1.49733397]
[1769135465684,0.86484539,2963.9,2963.0,1.49733397]
[1769135465885,0.00370106,2964.0,2963.0,1.49733397]
[1769135466083,0.86484534,2963.9,2963.0,1.49733397]
[1769135466284,0.00370106,2964.0,2963.0,1.49733397]
[1769135466486,0.86484733,2963.9,2963.0,1.49733397]
[1769135466689,0.00370106,2964.0,2963.0,1.49733397]
[1769135466884,0.86484675,2963.9,2963.0,1.49733397]
[1769135467083,0.00370106,2964.0,2963.0,1.49733397]
[1769135467284,0.8648002,2963.9,2963.0,1.49733397]
[1769135467484,0.00370106,2964.0,2963.0,1.49733397]
[1769135467792,0.86473666,2963.9,2963.0,1.49733397]
[1769135467990,0.00370106,2964.0,2963.0,1.49733397]
[1769135468290,0.8645414,2963.9,2963.0,1.49733397]
[1769135468504,0.8645414,2963.8,2963.0,1.49733397]
[1769135468685,0.00370106,2964.0,2963.0,1.49733397]
[1769135468983,0.86455094,2963.9,2963.0,1.49733397]
[1769135469183,0.86455094,2963.8,2963.0,1.49733397]
[1769135469384,0.00370106,2964.0,2963.0,1.49733397]
[1769135469690,0.86448347,2963.9,2963.0,1.49733397]
[1769135469990,0.86448347,2963.8,2963.0,1.49733397]
[1769135470191,0.00370106,2964.0,2963.0,1.49733397]
[1769135470393,0.86447524,2963.9,2963.0,1.49733397]
[1769135470591,0.00370106,2964.0,2963.0,1.49733397]
[1769135470794,0.86447904,2963.9,2963.0,1.49733397]
[1769135470992,0.86447904,2963.8,2963.0,1.49733397]
[1769135471290,0.00370106,2964.0,2963.0,1.49733397]
[1769135471494,0.86447376,2963.9,2963.0,1.49733397]
[1769135471694,0.86447376,2963.8,2962.7,4.01028651]
[1769135472692,0.89239522,2963.9,2962.7,4.01028651]
[1769135472882,0.8644665,2963.8,2962.7,4.01028651]
[1769135473083,0.89239522,2963.9,2962.7,4.01028651]
[1769135473284,0.8644619,2963.8,2962.7,4.01028651]
[1769135473493,0.89239522,2963.9,2962.7,4.01028651]
[1769135473693,0.86447267,2963.8,2962.7,4.01028651]
[1769135473894,0.89239522,2963.9,2962.8,2.42704269]
[1769135474095,0.86446807,2963.8,2962.7,4.01028651]
[1769135474395,0.89239522,2963.9,2962.7,4.01028651]
[1769135474592,0.86379958,2963.8,2962.7,4.01028651]
[1769135474890,0.89239522,2963.9,2962.7,4.01028651]
[1769135475091,0.86380255,2963.8,2962.7,4.01028651]
[1769135475290,0.89239522,2963.9,2962.7,4.01028651]
[1769135475501,0.86380151,2963.8,2962.8,2.42704269]
[1769135475687,0.89239522,2963.9,2962.8,2.42704269]
[1769135475894,0.86379748,2963.8,2962.7,4.01028651]
[1769135476088,0.89239522,2963.9,2962.7,4.01028651]
[1769135476389,0.8637919,2963.8,2962.7,4.01028651]
[1769135476591,0.89239522,2963.9,2962.7,4.01028651]
[1769135476787,0.86380065,2963.8,2962.7,4.01028651]
[1769135476987,0.89239522,2963.9,2962.7,4.01028651]
[1769135477187,0.86377453,2963.8,2962.7,4.01028651]
[1769135477389,0.89239522,2963.9,2962.7,4.01028651]
[1769135477681,0.86378618,2963.8,2962.7,4.01028651]
[1769135477995,0.89239522,2963.9,2962.7,4.01028651]
[1769135478190,0.86378678,2963.8,2962.7,4.01028651]
[1769135478390,0.89239522,2963.9,2962.7,4.01028651]
[1769135478591,0.86379061,2963.8,2962.7,4.01028651]
[1769135478790,0.89239522,2963.9,2962.7,4.01028651]
[1769135478991,0.86379052,2963.8,2962.7,4.01028651]
[1769135479192,0.89239522,2963.9,2962.7,4.01028651]
[1769135479392,0.86378665,2963.8,2962.7,4.01028651]
[1769135479595,0.89239522,2963.9,2962.7,4.01028651]
[1769135479892,0.86379019,2963.8,2962.9,1.58324382]
[1769135480102,0.00370106,2964.0,2963.0,1.58324382]
[1769135480298,0.86378119,2963.9,2963.0,1.58324382]
[1769135480597,0.00370106,2964.0,2962.9,0.89239522]
[1769135480598,0.00370106,2964.0,2963.4,2.47563904]
[1769135480798,6.498,2964.4,2963.5,1.58324382]
[1769135481007,0.86386332,2964.3,2963.5,1.58324382]
[1769135481191,1.5874684,2965.0,2963.5,1.58324382]
[1769135481396,0.86396419,2964.9,2963.5,1.58324382]
[1769135481591,0.86396419,2964.8,2963.6,1.58830199]
[1769135481792,0.86396419,2964.7,2963.6,1.58830199]
[1769135481992,0.86396419,2964.6,2963.6,1.58830199]
[1769135482193,0.86396419,2964.5,2963.6,1.58830199]
[1769135482389,0.00307197,2964.8,2963.6,1.58830199]
[1769135482597,0.86307196,2964.7,2963.6,1.58830199]
[1769135482799,0.86307196,2964.6,2963.6,1.58830199]
[1769135483000,0.86307196,2964.5,2963.6,1.58830199]
[1769135483197,0.00307197,2964.8,2963.6,1.58830199]
[1769135483397,0.86304236,2964.7,2963.6,1.58830199]
[1769135483598,0.86304236,2964.6,2963.6,1.58830199]
[1769135483789,0.00307197,2964.8,2963.6,1.58830199]
[1769135483990,0.86262497,2964.7,2963.6,1.58830199]
[1769135484200,0.86262497,2964.6,2963.6,1.58830199]
[1769135484394,0.00307197,2964.8,2963.6,1.58830199]
[1769135484596,0.86236785,2964.7,2963.6,1.58830199]
[1769135484795,0.86236785,2964.6,2963.6,1.58830199]
[1769135484997,0.00307197,2964.8,2963.6,1.58830199]
[1769135485195,0.8623693,2964.7,2963.6,1.58830199]
[1769135485398,0.8623693,2964.6,2963.6,1.58830199]
[1769135485598,0.00307197,2964.8,2963.6,1.58830199]
[1769135485803,0.86220767,2964.7,2963.6,1.58830199]
[1769135485999,0.86220767,2964.6,2963.6,1.58830199]
[1769135486300,0.00307197,2964.8,2963.6,1.58830199]
[1769135486505,0.86204919,2964.7,2963.6,1.58830199]
[1769135486703,0.86204919,2964.6,2963.6,1.58830199]
[1769135486903,0.00307197,2964.8,2963.6,1.58830199]
[1769135487106,0.86204856,2964.7,2963.6,1.58830199]
[1769135487406,0.86204856,2964.6,2963.6,1.58830199]
[1769135487604,0.00307197,2964.8,2963.6,1.58830199]
[1769135487805,0.86192878,2964.7,2963.6,1.58830199]
[1769135488006,0.86192878,2964.6,2963.6,1.58830199]
[1769135488211,0.00307197,2964.8,2963.6,1.58830199]
[1769135488509,0.86189753,2964.7,2963.6,1.58830199]
[1769135488703,0.86189753,2964.6,2963.6,1.58830199]
[1769135488898,0.00307197,2964.8,2963.6,1.58830199]
[1769135489098,0.86181702,2964.7,2963.6,1.58830199]
[1769135489304,0.86181702,2964.6,2963.6,1.58830199]
[1769135489505,0.00307197,2964.8,2963.6,1.58830199]
[1769135489706,0.86170825,2964.7,2963.6,1.58830199]
[1769135489905,0.86170825,2964.6,2963.6,1.58830199]
[1769135490111,0.00307197,2964.8,2963.6,1.58830199]
[1769135490405,0.86170856,2964.7,2963.6,1.58830199]
[1769135490605,0.86170856,2964.6,2963.6,1.58830199]
[1769135490803,0.00307197,2964.8,2963.6,1.58830199]
[1769135491007,0.86165192,2964.7,2963.6,1.58830199]
[1769135491196,0.86165192,2964.6,2963.6,1.58830199]
[1769135491399,0.00307197,2964.8,2963.6,1.58830199]
[1769135491606,0.86157954,2964.7,2963.6,1.58830199]
[1769135491899,0.86157954,2964.6,2963.6,1.58830199]
[1769135492099,0.00307197,2964.8,2963.6,1.58830199]
[1769135492406,0.86158128,2964.7,2963.6,1.58830199]
[1769135492701,0.00307197,2964.8,2963.6,1.58830199]
[1769135493006,0.00307197,2964.8,2963.9,1.74180321]
[1769135495611,6.498,2965.7,2963.9,1.74180321]
[1769135495811,0.86103212,2965.6,2963.9,1.74180321]
[1769135496012,0.86103212,2965.5,2963.9,1.74180321]
[1769135496212,0.86103212,2965.4,2963.9,1.74180321]
[1769135496414,0.86103212,2965.3,2963.9,1.74180321]
[1769135496612,0.86103212,2965.2,2963.9,1.74180321]
[1769135496812,0.86103212,2965.1,2963.9,1.74180321]
[1769135497012,0.86103212,2965.0,2963.9,1.74180321]
[1769135497209,0.86103212,2964.9,2963.9,1.74180321]
[1769135497417,0.00289036,2965.4,2963.9,1.74180321]
[1769135497618,0.8607676,2965.3,2963.9,1.74180321]
[1769135497821,0.00289036,2965.4,2963.9,1.74180321]
[1769135497822,0.8607676,2965.2,2963.9,1.74180321]
[1769135498119,0.8607676,2965.1,2963.9,1.74180321]
[1769135498320,0.8607676,2965.0,2963.9,1.74180321]
[1769135498529,0.00289036,2965.4,2963.9,1.74180321]
[1769135498820,0.86065571,2965.3,2963.9,1.74180321]
[1769135499016,0.86065571,2965.2,2963.9,1.74180321]
[1769135499209,0.00289036,2965.4,2963.9,1.74180321]
[1769135499210,0.86065571,2965.1,2963.9,1.74180321]
[1769135499421,0.86065571,2965.0,2963.9,1.74180321]
[1769135499618,0.00289036,2965.4,2963.9,1.74180321]
[1769135499819,0.86059082,2965.3,2963.9,1.74180321]
[1769135500120,0.86059082,2965.2,2963.9,1.74180321]
[1769135500321,0.86059082,2965.1,2963.9,1.74180321]
[1769135500510,0.86059082,2965.0,2963.9,1.74180321]
[1769135500710,0.00289036,2965.4,2963.9,1.74180321]
[1769135500916,0.86055586,2965.3,2963.9,1.74180321]
[1769135501123,0.86055586,2965.2,2963.9,1.74180321]
[1769135501420,0.86055586,2965.1,2963.9,1.74180321]
[1769135501621,0.86055586,2965.0,2963.9,1.74180321]
[1769135501818,0.00289036,2965.4,2963.9,1.74180321]
[1769135502019,0.86053133,2965.3,2963.9,1.74180321]
[1769135502219,0.86053133,2965.2,2963.9,1.74180321]
[1769135502518,0.86053133,2965.1,2963.9,1.74180321]
[1769135502719,0.86053133,2965.0,2963.9,1.74180321]
[1769135502918,0.00289036,2965.4,2963.9,1.74180321]
[1769135503119,0.86055893,2965.3,2963.9,1.74180321]
[1769135503321,0.86055893,2965.2,2963.9,1.74180321]
[1769135503520,0.86055893,2965.1,2963.9,1.74180321]
[1769135503721,0.86055893,2965.0,2963.9,1.74180321]
[1769135503925,0.00289036,2965.4,2963.9,1.74180321]
[1769135504124,0.86057959,2965.3,2963.9,1.74180321]
[1769135504324,0.86057959,2965.2,2963.9,1.74180321]
[1769135504525,0.86057959,2965.1,2963.9,1.74180321]
[1769135504726,0.86057959,2965.0,2963.9,1.74180321]
[1769135505038,0.00289036,2965.4,2963.9,1.74180321]
[1769135505325,0.85867012,2965.3,2963.9,1.74180321]
[1769135505526,0.85867012,2965.2,2963.9,1.74180321]
[1769135505726,0.85867012,2965.1,2963.9,1.74180321]
[1769135505933,0.85867012,2965.0,2963.9,1.74180321]
[1769135506121,0.00289036,2965.4,2963.9,1.74180321]
[1769135506322,0.8587876,2965.3,2963.9,1.74180321]
[1769135506524,0.00289036,2965.4,2963.9,1.74180321]
[1769135506723,0.85893338,2965.3,2963.9,1.74180321]
[1769135506923,0.00289036,2965.4,2963.9,1.74180321]
[1769135507230,0.85891726,2965.3,2963.9,1.74180321]
[1769135507431,0.00289036,2965.4,2963.9,1.74180321]
[1769135507632,0.85910219,2965.3,2963.9,1.74180321]
[1769135507833,0.00289036,2965.4,2963.9,1.74180321]
[1769135508129,0.85910356,2965.3,2963.9,1.74180321]
[1769135508329,0.00289036,2965.4,2963.9,1.74180321]
[1769135508530,0.85935775,2965.3,2963.9,1.74180321]
[1769135508730,0.85935402,2965.2,2963.9,1.74180321]
[1769135508931,0.00289036,2965.4,2963.9,1.74180321]
[1769135509133,0.85934712,2965.3,2963.9,1.74180321]
[1769135509330,0.85967241,2965.2,2963.9,1.74180321]
[1769135509530,0.00289036,2965.4,2963.9,1.74180321]
[1769135509731,0.85968003,2965.3,2963.9,1.74180321]
[1769135509927,0.85968003,2965.2,2963.9,1.74180321]
[1769135510141,0.00289036,2965.4,2963.9,1.74180321]
[1769135510431,0.85967809,2965.3,2963.9,1.74180321]
[1769135510634,0.85967809,2965.2,2963.9,1.74180321]
[1769135510833,0.00289036,2965.4,2963.9,1.74180321]
[1769135511029,0.00289036,2965.4,2963.7,2.42704269]
[1769135511030,0.86006203,2965.3,2964.3,1.74180321]
[1769135511237,0.00289036,2965.4,2964.3,1.74180321]
[1769135511533,1.64787066,2966.2,2964.4,1.74180321]
[1769135511739,1.907,2966.3,2964.4,1.74180321]
[1769135511740,0.8603388,2966.1,2964.5,1.74180321]
[1769135511928,0.8603388,2966.0,2964.5,1.74180321]
[1769135512127,0.8603388,2965.9,2964.7,1.74180321]
[1769135512332,1.64787066,2966.6,2964.8,2.42704269]
[1769135512638,1.64787066,2966.4,2965.0,0.00505817]
[1769135512835,0.85970711,2966.3,2965.0,0.00505817]
[1769135513032,1.64787066,2966.4,2965.0,0.00505817]
[1769135513236,0.85969487,2966.3,2965.0,0.00505817]
[1769135513537,1.64787066,2966.4,2965.0,0.00505817]
[1769135513740,0.85919252,2966.3,2965.0,0.00505817]
[1769135513938,1.64787066,2966.4,2965.0,0.00505817]
[1769135514139,0.85919252,2966.3,2965.0,0.00505817]
[1769135514345,1.64787066,2966.4,2965.0,0.00505817]
[1769135514637,0.85882002,2966.3,2965.0,0.00505817]
[1769135514827,1.64787066,2966.4,2965.0,0.00505817]
[1769135515029,0.85881918,2966.3,2965.0,0.00505817]
[1769135515234,1.64787066,2966.4,2965.0,0.00505817]
[1769135516939,1.64787066,2966.4,2965.0,1.74686138]
[1769135525646,1.66950409,2966.2,2965.0,0.00505817]
[1769135525847,2.52737047,2966.1,2965.0,0.00505817]
[1769135526039,1.66950409,2966.1,2965.0,0.00505817]
[1769135527245,2.52756319,2966.0,2965.0,0.00505817]
[1769135527439,1.66950409,2965.9,2965.0,0.00505817]
[1769135530154,1.66950409,2966.4,2965.0,0.00505817]
[1769135530449,1.66950409,2966.2,2965.0,0.00505817]
[1769135530634,0.85835912,2966.1,2965.0,0.00505817]